[Event "Titled Tuesday Blitz April 18 Early 2023"]
[White "Fuzesabonyilaci"]
[Black "Winkels, Marcel"]
[BlackFideId "1003887"]
[WhiteElo "2317"]
[BlackElo "1900"]
[Result "1-0"]
[Round "04"]
[TimeControl "180+2"]
[Date "2023.04.18"]
[WhiteClock "0:02:09"]
[BlackClock "0:01:55"]

1. e4 {[%clk 0:03:00]}  c5 {[%clk 0:02:59]} 2. Nf3 {[%clk 0:03:00]}  d6 {[%clk 0:02:59]} 3. d4 {[%clk 0:02:59]}  cxd4 {[%clk 0:03:00]} 4. Nxd4 {[%clk 0:03:00]}  Nf6 {[%clk 0:03:00]} 5. Nc3 {[%clk 0:03:01]}  Nc6 {[%clk 0:03:00]} 6. Bg5 {[%clk 0:03:00]}  e6 {[%clk 0:02:59]} 7. Qd2 {[%clk 0:02:54]}  a6 {[%clk 0:02:59]} 8. O-O-O {[%clk 0:02:54]}  h6 {[%clk 0:02:59]} 9. Bh4 {[%clk 0:02:49]}  Nxe4 {[%clk 0:02:39]} 10. Nxe4 {[%clk 0:02:24]}  Qxh4 {[%clk 0:02:38]} 11. Qe3 {[%clk 0:02:16]}  Nxd4 {[%clk 0:02:26]} 12. Rxd4 {[%clk 0:02:11]}  d5 {[%clk 0:01:55]} 13. Nd6+ {[%clk 0:02:09]} 1-0


[Site "https://www.chess.com"]

[Event "Titled Tuesday Blitz April 18 Early 2023"]
[White "Ng, Gary"]
[Black "Flis, Pawel"]
[WhiteFideId "2604914"]
[BlackFideId "1112864"]
[WhiteElo "2316"]
[BlackElo "1822"]
[Result "0-1"]
[Round "04"]
[TimeControl "180+2"]
[Date "2023.04.18"]
[WhiteClock "0:00:02"]
[BlackClock "0:00:22"]

1. d4 {[%clk 0:00:49]}  c5 {[%clk 0:02:57]} 2. d5 {[%clk 0:00:49]}  Nf6 {[%clk 0:02:57]} 3. Nc3 {[%clk 0:00:49]}  e6 {[%clk 0:02:57]} 4. e4 {[%clk 0:00:48]}  d6 {[%clk 0:02:57]} 5. Bg5 {[%clk 0:00:47]}  exd5 {[%clk 0:02:55]} 6. Nxd5 {[%clk 0:00:45]}  Be7 {[%clk 0:02:44]} 7. Nxe7 {[%clk 0:00:45]}  Qxe7 {[%clk 0:02:44]} 8. f3 {[%clk 0:00:44]}  Nc6 {[%clk 0:02:38]} 9. Bc4 {[%clk 0:00:43]}  Be6 {[%clk 0:02:37]} 10. Bxe6 {[%clk 0:00:39]}  Qxe6 {[%clk 0:02:35]} 11. Ne2 {[%clk 0:00:38]}  O-O {[%clk 0:02:29]} 12. Nf4 {[%clk 0:00:38]}  Qe5 {[%clk 0:02:17]} 13. h4 {[%clk 0:00:20]}  h6 {[%clk 0:02:03]} 14. Bxf6 {[%clk 0:00:20]}  Qxf4 {[%clk 0:01:52]} 15. Be7 {[%clk 0:00:17]}  Qg3+ {[%clk 0:01:38]} 16. Kf1 {[%clk 0:00:17]}  Rfe8 {[%clk 0:01:36]} 17. Bxd6 {[%clk 0:00:17]}  Qg6 {[%clk 0:01:27]} 18. Bxc5 {[%clk 0:00:17]}  Rad8 {[%clk 0:01:27]} 19. Qe2 {[%clk 0:00:15]}  b6 {[%clk 0:01:19]} 20. Be3 {[%clk 0:00:13]}  Nd4 {[%clk 0:01:16]} 21. Bxd4 {[%clk 0:00:10]}  Rxd4 {[%clk 0:01:15]} 22. Rd1 {[%clk 0:00:11]}  Rxd1+ {[%clk 0:01:07]} 23. Qxd1 {[%clk 0:00:10]}  Qc6 {[%clk 0:01:08]} 24. Rh3 {[%clk 0:00:05]}  Qb5+ {[%clk 0:01:06]} 25. Kg1 {[%clk 0:00:04]}  Qxb2 {[%clk 0:01:06]} 26. Rg3 {[%clk 0:00:04]}  Qf6 {[%clk 0:00:58]} 27. Kh2 {[%clk 0:00:03]}  Qxh4+ {[%clk 0:00:56]} 28. Rh3 {[%clk 0:00:04]}  Qf6 {[%clk 0:00:49]} 29. Qd7 {[%clk 0:00:02]}  Rd8 {[%clk 0:00:44]} 30. Qxa7 {[%clk 0:00:03]}  Qf4+ {[%clk 0:00:39]} 31. Rg3 {[%clk 0:00:03]}  Rd6 {[%clk 0:00:31]} 32. Qe7 {[%clk 0:00:02]}  Rg6 {[%clk 0:00:22]} 33. Qe8+ {[%clk 0:00:02]}  Kh7 {[%clk 0:00:22]} 0-1


[Site "https://www.chess.com"]

[Event "Titled Tuesday Blitz April 18 Early 2023"]
[White "Steenbekkers, Franck"]
[Black "Pesotskiy, Mikhail"]
[WhiteFideId "1004220"]
[BlackFideId "34164453"]
[WhiteElo "2090"]
[BlackElo "2131"]
[Result "0-1"]
[Round "04"]
[TimeControl "180+2"]
[Date "2023.04.18"]
[WhiteClock "0:02:04"]
[BlackClock "0:02:46"]

1. e4 {[%clk 0:02:55]}  e6 {[%clk 0:03:00]} 2. d4 {[%clk 0:02:54]}  d5 {[%clk 0:03:01]} 3. Nd2 {[%clk 0:02:53]}  Nf6 {[%clk 0:03:01]} 4. e5 {[%clk 0:02:53]}  Nfd7 {[%clk 0:03:02]} 5. c3 {[%clk 0:02:53]}  c5 {[%clk 0:03:03]} 6. Bd3 {[%clk 0:02:54]}  Nc6 {[%clk 0:03:04]} 7. Ne2 {[%clk 0:02:54]}  cxd4 {[%clk 0:03:04]} 8. cxd4 {[%clk 0:02:53]}  f6 {[%clk 0:03:05]} 9. exf6 {[%clk 0:02:52]}  Qxf6 {[%clk 0:03:06]} 10. O-O {[%clk 0:02:51]}  h6 {[%clk 0:03:07]} 11. Nf3 {[%clk 0:02:50]}  Bd6 {[%clk 0:03:08]} 12. Nc3 {[%clk 0:02:46]}  O-O {[%clk 0:03:08]} 13. Re1 {[%clk 0:02:44]}  Rd8 {[%clk 0:03:08]} 14. b3 {[%clk 0:02:34]}  Nf8 {[%clk 0:03:06]} 15. Bb2 {[%clk 0:02:33]}  Bd7 {[%clk 0:03:03]} 16. Rc1 {[%clk 0:02:30]}  Be8 {[%clk 0:03:03]} 17. Nb5 {[%clk 0:02:10]}  Bf4 {[%clk 0:03:02]} 18. Rc2 {[%clk 0:02:08]}  Nb4 {[%clk 0:03:00]} 19. Rc3 {[%clk 0:02:05]}  Nxa2 {[%clk 0:02:49]} 20. Rc7 {[%clk 0:02:04]}  Bxb5 {[%clk 0:02:46]} 0-1


[Site "https://www.chess.com"]

[Event "Titled Tuesday Blitz April 18 Early 2023"]
[White "Maranhao,Jose Renato Ruiz"]
[Black "ibove"]
[WhiteFideId "2135175"]
[WhiteElo "1970"]
[BlackElo "2314"]
[Result "0-1"]
[Round "04"]
[TimeControl "180+2"]
[Date "2023.04.18"]
[WhiteClock "0:00:01"]
[BlackClock "0:01:42"]

1. e4 {[%clk 0:02:54]}  c5 {[%clk 0:02:59]} 2. Nf3 {[%clk 0:02:53]}  d6 {[%clk 0:02:53]} 3. d4 {[%clk 0:02:52]}  cxd4 {[%clk 0:02:52]} 4. Nxd4 {[%clk 0:02:53]}  Nf6 {[%clk 0:02:52]} 5. Nc3 {[%clk 0:02:53]}  g6 {[%clk 0:02:52]} 6. Be3 {[%clk 0:02:49]}  Bg7 {[%clk 0:02:50]} 7. f3 {[%clk 0:02:49]}  O-O {[%clk 0:02:49]} 8. Qd2 {[%clk 0:02:49]}  Nc6 {[%clk 0:02:49]} 9. O-O-O {[%clk 0:02:48]}  Nxd4 {[%clk 0:02:46]} 10. Bxd4 {[%clk 0:02:47]}  Be6 {[%clk 0:02:47]} 11. Kb1 {[%clk 0:02:42]}  Qc7 {[%clk 0:02:46]} 12. g4 {[%clk 0:02:12]}  Rfc8 {[%clk 0:02:45]} 13. h4 {[%clk 0:02:03]}  Qa5 {[%clk 0:02:44]} 14. Nd5 {[%clk 0:00:46]}  Qxd2 {[%clk 0:02:32]} 15. Nxf6+ {[%clk 0:00:42]}  Bxf6 {[%clk 0:02:26]} 16. Rxd2 {[%clk 0:00:42]}  Bxd4 {[%clk 0:02:19]} 17. Rxd4 {[%clk 0:00:43]}  Rc5 {[%clk 0:02:18]} 18. Be2 {[%clk 0:00:29]}  Rac8 {[%clk 0:02:16]} 19. c3 {[%clk 0:00:26]}  b5 {[%clk 0:02:16]} 20. Rb4 {[%clk 0:00:19]}  a6 {[%clk 0:02:11]} 21. a4 {[%clk 0:00:16]}  bxa4 {[%clk 0:02:05]} 22. Rxa4 {[%clk 0:00:16]}  a5 {[%clk 0:02:05]} 23. Rd1 {[%clk 0:00:14]}  Bb3 {[%clk 0:02:04]} 24. Rdd4 {[%clk 0:00:12]}  Bxa4 {[%clk 0:02:03]} 25. Rxa4 {[%clk 0:00:13]}  Rb8 {[%clk 0:02:04]} 26. Kc2 {[%clk 0:00:12]}  Kg7 {[%clk 0:02:02]} 27. Bc4 {[%clk 0:00:10]}  Kf6 {[%clk 0:02:00]} 28. f4 {[%clk 0:00:08]}  e6 {[%clk 0:01:58]} 29. Bd3 {[%clk 0:00:05]}  d5 {[%clk 0:01:56]} 30. e5+ {[%clk 0:00:05]}  Kg7 {[%clk 0:01:56]} 31. Ra3 {[%clk 0:00:03]}  h5 {[%clk 0:01:47]} 32. g5 {[%clk 0:00:02]}  d4 {[%clk 0:01:46]} 33. Ra4 {[%clk 0:00:01]}  dxc3 {[%clk 0:01:45]} 34. bxc3 {[%clk 0:00:02]}  Rbc8 {[%clk 0:01:44]} 35. Ra3 {[%clk 0:00:02]}  Rd8 {[%clk 0:01:43]} 36. Ra4 {[%clk 0:00:01]}  Rcd5 {[%clk 0:01:42]} 37. Be4 {[%clk 0:00:01]}  Rd2+ {[%clk 0:01:41]} 38. Kb3 {[%clk 0:00:01]}  Rh2 {[%clk 0:01:41]} 39. Rxa5 {[%clk 0:00:01]}  Rxh4 {[%clk 0:01:42]} 40. Ra7 {[%clk 0:00:01]}  Rxf4 {[%clk 0:01:42]} 0-1


[Site "https://www.chess.com"]

[Event "Titled Tuesday Blitz April 18 Early 2023"]
[White "Osiecki, Stanislaw"]
[Black "Novikova, Galina"]
[WhiteFideId "1102990"]
[BlackFideId "4157095"]
[WhiteElo "2088"]
[BlackElo "1953"]
[Result "0-1"]
[Round "04"]
[TimeControl "180+2"]
[Date "2023.04.18"]
[WhiteClock "0:00:47"]
[BlackClock "0:00:36"]

1. e4 {[%clk 0:02:49]}  e6 {[%clk 0:02:59]} 2. d4 {[%clk 0:02:46]}  d5 {[%clk 0:03:00]} 3. e5 {[%clk 0:02:46]}  c5 {[%clk 0:03:00]} 4. c3 {[%clk 0:02:46]}  Nc6 {[%clk 0:03:01]} 5. Nf3 {[%clk 0:02:46]}  Bd7 {[%clk 0:03:00]} 6. Bd3 {[%clk 0:02:44]}  f6 {[%clk 0:03:01]} 7. O-O {[%clk 0:02:40]}  Qc7 {[%clk 0:03:01]} 8. Bf4 {[%clk 0:02:36]}  O-O-O {[%clk 0:03:01]} 9. dxc5 {[%clk 0:02:25]}  h6 {[%clk 0:02:57]} 10. Bg3 {[%clk 0:02:21]}  f5 {[%clk 0:02:57]} 11. b4 {[%clk 0:02:18]}  g5 {[%clk 0:02:56]} 12. h3 {[%clk 0:02:17]}  f4 {[%clk 0:02:56]} 13. Bh2 {[%clk 0:02:17]}  Nxe5 {[%clk 0:02:56]} 14. Nxe5 {[%clk 0:02:15]}  Qxe5 {[%clk 0:02:57]} 15. Re1 {[%clk 0:02:12]}  Qf6 {[%clk 0:02:57]} 16. Qe2 {[%clk 0:02:11]}  Bg7 {[%clk 0:02:54]} 17. Bb5 {[%clk 0:02:10]}  Ne7 {[%clk 0:02:42]} 18. Bxd7+ {[%clk 0:02:09]}  Kxd7 {[%clk 0:02:41]} 19. c6+ {[%clk 0:02:07]}  Nxc6 {[%clk 0:02:36]} 20. Qb5 {[%clk 0:02:06]}  Kc8 {[%clk 0:02:31]} 21. a4 {[%clk 0:02:00]}  Kb8 {[%clk 0:02:30]} 22. a5 {[%clk 0:01:59]}  a6 {[%clk 0:02:26]} 23. Qe2 {[%clk 0:01:59]}  Ne5 {[%clk 0:02:11]} 24. b5 {[%clk 0:01:54]}  Nc4 {[%clk 0:02:04]} 25. bxa6 {[%clk 0:01:49]}  bxa6 {[%clk 0:02:05]} 26. Qxe6 {[%clk 0:01:33]}  Qxe6 {[%clk 0:02:04]} 27. Rxe6 {[%clk 0:01:33]}  Rhe8 {[%clk 0:02:05]} 28. Rxe8 {[%clk 0:01:33]}  Rxe8 {[%clk 0:02:06]} 29. Kf1 {[%clk 0:01:33]}  Kc7 {[%clk 0:01:40]} 30. g3 {[%clk 0:01:33]}  Be5 {[%clk 0:01:39]} 31. gxf4 {[%clk 0:01:32]}  gxf4 {[%clk 0:01:40]} 32. Ra2 {[%clk 0:01:27]}  Kc6 {[%clk 0:01:27]} 33. Re2 {[%clk 0:01:24]}  Rb8 {[%clk 0:01:27]} 34. Nd2 {[%clk 0:01:20]}  Nxd2+ {[%clk 0:01:04]} 35. Rxd2 {[%clk 0:01:19]}  Rb1+ {[%clk 0:00:58]} 36. Ke2 {[%clk 0:01:13]}  f3+ {[%clk 0:00:57]} 37. Kxf3 {[%clk 0:01:14]}  Bxh2 {[%clk 0:00:58]} 38. Kg4 {[%clk 0:01:11]}  Be5 {[%clk 0:00:52]} 39. Re2 {[%clk 0:01:08]}  Bxc3 {[%clk 0:00:52]} 40. Re6+ {[%clk 0:01:08]}  Kc5 {[%clk 0:00:46]} 41. Rxa6 {[%clk 0:01:07]}  d4 {[%clk 0:00:46]} 42. Kf3 {[%clk 0:01:07]}  Re1 {[%clk 0:00:45]} 43. Ra8 {[%clk 0:01:04]}  d3 {[%clk 0:00:41]} 44. Rc8+ {[%clk 0:01:04]}  Kb4 {[%clk 0:00:42]} 45. a6 {[%clk 0:01:01]}  d2 {[%clk 0:00:41]} 46. Rb8+ {[%clk 0:00:58]}  Ka3 {[%clk 0:00:37]} 47. Rc8 {[%clk 0:00:47]}  d1=Q+ {[%clk 0:00:36]} 0-1


[Site "https://www.chess.com"]

[Event "Titled Tuesday Blitz April 18 Early 2023"]
[White "Seder, Mohammed"]
[Black "Mihajlovskij"]
[WhiteFideId "11505567"]
[WhiteElo "1862"]
[BlackElo "2011"]
[Result "1-0"]
[Round "04"]
[TimeControl "180+2"]
[Date "2023.04.18"]
[WhiteClock "0:01:48"]
[BlackClock "0:01:56"]

1. e4 {[%clk 0:03:00]}  c5 {[%clk 0:02:59]} 2. Nf3 {[%clk 0:03:00]}  Nc6 {[%clk 0:02:57]} 3. Bb5 {[%clk 0:02:59]}  g6 {[%clk 0:02:57]} 4. O-O {[%clk 0:02:58]}  Bg7 {[%clk 0:02:58]} 5. c3 {[%clk 0:02:59]}  Nf6 {[%clk 0:02:58]} 6. Re1 {[%clk 0:02:54]}  O-O {[%clk 0:02:58]} 7. d4 {[%clk 0:02:52]}  d5 {[%clk 0:02:58]} 8. e5 {[%clk 0:02:48]}  Ne4 {[%clk 0:02:59]} 9. Nbd2 {[%clk 0:02:32]}  Bg4 {[%clk 0:02:37]} 10. Nxe4 {[%clk 0:02:26]}  dxe4 {[%clk 0:02:38]} 11. Rxe4 {[%clk 0:02:25]}  Bxf3 {[%clk 0:02:32]} 12. Qxf3 {[%clk 0:02:25]}  cxd4 {[%clk 0:02:32]} 13. Bxc6 {[%clk 0:02:24]}  bxc6 {[%clk 0:02:31]} 14. Rxd4 {[%clk 0:02:15]}  Qb6 {[%clk 0:02:26]} 15. Rb4 {[%clk 0:01:52]}  Qc7 {[%clk 0:02:12]} 16. Bf4 {[%clk 0:01:52]}  Bxe5 {[%clk 0:01:57]} 17. Bxe5 {[%clk 0:01:52]}  Qxe5 {[%clk 0:01:58]} 18. Qxc6 {[%clk 0:01:52]}  Qe2 {[%clk 0:01:58]} 19. Qe4 {[%clk 0:01:48]}  Qc2 {[%clk 0:01:56]} 20. Qxc2 {[%clk 0:01:48]} 1-0


[Site "https://www.chess.com"]

[Event "Titled Tuesday Blitz April 18 Early 2023"]
[White "Nakamura, Hikaru"]
[Black "Bortnyk, Olexandr"]
[WhiteFideId "2016192"]
[BlackFideId "14120828"]
[WhiteElo "2885"]
[BlackElo "2734"]
[Result "1-0"]
[Round "05"]
[TimeControl "180+2"]
[Date "2023.04.18"]
[WhiteClock "0:00:18"]
[BlackClock "0:00:05"]

1. Nf3 {[%clk 0:03:00]}  Nf6 {[%clk 0:02:36]} 2. c4 {[%clk 0:02:39]}  b6 {[%clk 0:02:33]} 3. d3 {[%clk 0:02:38]}  Bb7 {[%clk 0:02:34]} 4. e4 {[%clk 0:02:39]}  d6 {[%clk 0:02:33]} 5. g3 {[%clk 0:02:39]}  c5 {[%clk 0:02:30]} 6. Bg2 {[%clk 0:02:38]}  g6 {[%clk 0:02:30]} 7. O-O {[%clk 0:02:37]}  Bg7 {[%clk 0:02:31]} 8. Nc3 {[%clk 0:02:38]}  O-O {[%clk 0:02:31]} 9. Re1 {[%clk 0:02:37]}  Nc6 {[%clk 0:02:23]} 10. Be3 {[%clk 0:02:36]}  e6 {[%clk 0:02:19]} 11. d4 {[%clk 0:02:28]}  cxd4 {[%clk 0:02:13]} 12. Nxd4 {[%clk 0:02:27]}  Nxd4 {[%clk 0:02:03]} 13. Bxd4 {[%clk 0:02:28]}  Qe7 {[%clk 0:02:04]} 14. b3 {[%clk 0:02:23]}  Rfd8 {[%clk 0:02:03]} 15. Qd2 {[%clk 0:02:18]}  Bc6 {[%clk 0:02:00]} 16. Nd5 {[%clk 0:02:11]}  Bxd5 {[%clk 0:01:54]} 17. exd5 {[%clk 0:02:12]}  e5 {[%clk 0:01:54]} 18. f4 {[%clk 0:02:11]}  Nd7 {[%clk 0:01:52]} 19. f5 {[%clk 0:02:00]}  gxf5 {[%clk 0:01:33]} 20. Bc3 {[%clk 0:01:52]}  Nc5 {[%clk 0:01:21]} 21. Rf1 {[%clk 0:01:50]}  f4 {[%clk 0:01:11]} 22. gxf4 {[%clk 0:01:49]}  e4 {[%clk 0:01:07]} 23. Rae1 {[%clk 0:01:48]}  f5 {[%clk 0:01:01]} 24. Re3 {[%clk 0:01:40]}  Kh8 {[%clk 0:00:53]} 25. Rg3 {[%clk 0:01:38]}  Rg8 {[%clk 0:00:49]} 26. Kh1 {[%clk 0:01:13]}  Raf8 {[%clk 0:00:40]} 27. Bh3 {[%clk 0:01:09]}  Bxc3 {[%clk 0:00:28]} 28. Qxc3+ {[%clk 0:01:09]}  Qf6 {[%clk 0:00:29]} 29. Rxg8+ {[%clk 0:00:57]}  Kxg8 {[%clk 0:00:30]} 30. Rg1+ {[%clk 0:00:57]}  Kf7 {[%clk 0:00:24]} 31. Qxf6+ {[%clk 0:00:57]}  Kxf6 {[%clk 0:00:25]} 32. Rg5 {[%clk 0:00:57]}  Re8 {[%clk 0:00:19]} 33. Rxf5+ {[%clk 0:00:55]}  Kg6 {[%clk 0:00:20]} 34. Rg5+ {[%clk 0:00:56]}  Kf6 {[%clk 0:00:20]} 35. Rf5+ {[%clk 0:00:46]}  Kg6 {[%clk 0:00:20]} 36. Bg4 {[%clk 0:00:46]}  e3 {[%clk 0:00:20]} 37. Rg5+ {[%clk 0:00:46]}  Kf6 {[%clk 0:00:21]} 38. Be2 {[%clk 0:00:45]}  Ne4 {[%clk 0:00:21]} 39. Rg1 {[%clk 0:00:32]}  Nf2+ {[%clk 0:00:17]} 40. Kg2 {[%clk 0:00:32]}  Rg8+ {[%clk 0:00:18]} 41. Kf1 {[%clk 0:00:33]}  Rxg1+ {[%clk 0:00:19]} 42. Kxg1 {[%clk 0:00:34]}  Nh3+ {[%clk 0:00:19]} 43. Kg2 {[%clk 0:00:34]}  Nxf4+ {[%clk 0:00:17]} 44. Kf3 {[%clk 0:00:35]}  Ke5 {[%clk 0:00:12]} 45. Kxe3 {[%clk 0:00:32]}  a5 {[%clk 0:00:09]} 46. Bf3 {[%clk 0:00:27]}  h6 {[%clk 0:00:09]} 47. Bg4 {[%clk 0:00:26]}  Ng2+ {[%clk 0:00:08]} 48. Kf3 {[%clk 0:00:24]}  Ne1+ {[%clk 0:00:08]} 49. Ke2 {[%clk 0:00:23]}  Nc2 {[%clk 0:00:08]} 50. Kd2 {[%clk 0:00:20]}  Nb4 {[%clk 0:00:05]} 51. a3 {[%clk 0:00:20]}  Na6 {[%clk 0:00:06]} 52. Ke3 {[%clk 0:00:21]}  Nc5 {[%clk 0:00:05]} 53. Bd1 {[%clk 0:00:21]}  Ne4 {[%clk 0:00:05]} 54. b4 {[%clk 0:00:18]} 1-0


[Site "https://www.chess.com"]

[Event "Titled Tuesday Blitz April 18 Early 2023"]
[White "Alekseenko, Kirill"]
[Black "Le, Tuan Minh"]
[WhiteFideId "4135539"]
[BlackFideId "12401153"]
[WhiteElo "2683"]
[BlackElo "2566"]
[Result "0-1"]
[Round "05"]
[TimeControl "180+2"]
[Date "2023.04.18"]
[WhiteClock "0:00:05"]
[BlackClock "0:00:07"]

1. d4 {[%clk 0:03:00]}  d5 {[%clk 0:02:55]} 2. Nc3 {[%clk 0:03:01]}  Nf6 {[%clk 0:02:54]} 3. Bf4 {[%clk 0:03:01]}  Bf5 {[%clk 0:02:52]} 4. e3 {[%clk 0:02:57]}  a6 {[%clk 0:02:52]} 5. Bd3 {[%clk 0:02:55]}  Bg6 {[%clk 0:02:52]} 6. h4 {[%clk 0:02:51]}  e6 {[%clk 0:02:50]} 7. h5 {[%clk 0:02:52]}  Bxd3 {[%clk 0:02:50]} 8. cxd3 {[%clk 0:02:52]}  h6 {[%clk 0:02:51]} 9. Qb3 {[%clk 0:02:44]}  b6 {[%clk 0:02:40]} 10. Nf3 {[%clk 0:02:44]}  Bd6 {[%clk 0:02:40]} 11. Qa4+ {[%clk 0:02:18]}  Qd7 {[%clk 0:02:23]} 12. Bxd6 {[%clk 0:02:10]}  cxd6 {[%clk 0:02:24]} 13. Qxd7+ {[%clk 0:01:42]}  Nbxd7 {[%clk 0:02:25]} 14. a4 {[%clk 0:01:43]}  Ke7 {[%clk 0:02:19]} 15. Kd2 {[%clk 0:01:42]}  Rhc8 {[%clk 0:02:11]} 16. Ng1 {[%clk 0:01:24]}  Nb8 {[%clk 0:02:07]} 17. b4 {[%clk 0:01:14]}  Nc6 {[%clk 0:02:06]} 18. Rb1 {[%clk 0:01:15]}  Nb8 {[%clk 0:01:24]} 19. Nge2 {[%clk 0:01:14]}  Ra7 {[%clk 0:01:23]} 20. f3 {[%clk 0:01:13]}  Rac7 {[%clk 0:01:23]} 21. b5 {[%clk 0:00:55]}  a5 {[%clk 0:01:23]} 22. Rbc1 {[%clk 0:00:51]}  Nbd7 {[%clk 0:01:22]} 23. g4 {[%clk 0:00:46]}  Nh7 {[%clk 0:01:11]} 24. f4 {[%clk 0:00:46]}  Kf8 {[%clk 0:00:59]} 25. Rcg1 {[%clk 0:00:44]}  Nhf6 {[%clk 0:00:54]} 26. g5 {[%clk 0:00:42]}  Ng8 {[%clk 0:00:54]} 27. g6 {[%clk 0:00:31]}  f5 {[%clk 0:00:54]} 28. Rc1 {[%clk 0:00:28]}  Ngf6 {[%clk 0:00:54]} 29. Ng3 {[%clk 0:00:23]}  Ng4 {[%clk 0:00:51]} 30. Rhe1 {[%clk 0:00:20]}  Ndf6 {[%clk 0:00:51]} 31. Rc2 {[%clk 0:00:20]}  Ke8 {[%clk 0:00:45]} 32. Rec1 {[%clk 0:00:20]}  Kd7 {[%clk 0:00:45]} 33. Nd1 {[%clk 0:00:20]}  Rxc2+ {[%clk 0:00:21]} 34. Rxc2 {[%clk 0:00:21]}  Rxc2+ {[%clk 0:00:21]} 35. Kxc2 {[%clk 0:00:22]}  Ng8 {[%clk 0:00:21]} 36. Kd2 {[%clk 0:00:22]}  Ne7 {[%clk 0:00:22]} 37. Ke2 {[%clk 0:00:21]}  e5 {[%clk 0:00:22]} 38. dxe5 {[%clk 0:00:07]}  dxe5 {[%clk 0:00:23]} 39. d4 {[%clk 0:00:06]}  e4 {[%clk 0:00:11]} 40. Nc3 {[%clk 0:00:06]}  Ke6 {[%clk 0:00:11]} 41. Nd1 {[%clk 0:00:06]}  Nc8 {[%clk 0:00:12]} 42. Nb2 {[%clk 0:00:04]}  Nd6 {[%clk 0:00:12]} 43. Kd2 {[%clk 0:00:04]}  Nf6 {[%clk 0:00:09]} 44. Kc3 {[%clk 0:00:04]}  Kd7 {[%clk 0:00:06]} 45. Kd2 {[%clk 0:00:04]}  Ke7 {[%clk 0:00:07]} 46. Kc3 {[%clk 0:00:05]}  Ke6 {[%clk 0:00:08]} 47. Kd2 {[%clk 0:00:05]}  Nc4+ {[%clk 0:00:08]} 48. Nxc4 {[%clk 0:00:05]}  dxc4 {[%clk 0:00:09]} 49. Kc3 {[%clk 0:00:02]}  Nd5+ {[%clk 0:00:10]} 50. Kd2 {[%clk 0:00:02]}  c3+ {[%clk 0:00:10]} 51. Ke2 {[%clk 0:00:03]}  c2 {[%clk 0:00:10]} 52. Kd2 {[%clk 0:00:04]}  Nxe3 {[%clk 0:00:11]} 53. Ne2 {[%clk 0:00:04]}  c1=Q+ {[%clk 0:00:04]} 54. Nxc1 {[%clk 0:00:03]}  Nc4+ {[%clk 0:00:04]} 55. Kc3 {[%clk 0:00:03]}  Nd6 {[%clk 0:00:03]} 56. Ne2 {[%clk 0:00:04]}  Ne8 {[%clk 0:00:04]} 57. Kc4 {[%clk 0:00:04]}  Nf6 {[%clk 0:00:04]} 58. Ng3 {[%clk 0:00:04]}  Nd5 {[%clk 0:00:03]} 59. Ne2 {[%clk 0:00:05]}  Ne3+ {[%clk 0:00:03]} 60. Kc3 {[%clk 0:00:05]}  Kd5 {[%clk 0:00:04]} 61. Ng3 {[%clk 0:00:05]}  Ke6 {[%clk 0:00:03]} 62. Ne2 {[%clk 0:00:05]}  Ng4 {[%clk 0:00:03]} 63. Kc4 {[%clk 0:00:04]}  Nf6 {[%clk 0:00:04]} 64. Ng3 {[%clk 0:00:04]}  Nd5 {[%clk 0:00:05]} 65. Ne2 {[%clk 0:00:04]}  Nb4 {[%clk 0:00:04]} 66. Ng3 {[%clk 0:00:04]}  Nd3 {[%clk 0:00:04]} 67. d5+ {[%clk 0:00:04]}  Kf6 {[%clk 0:00:04]} 68. d6 {[%clk 0:00:05]}  Nxf4 {[%clk 0:00:04]} 69. d7 {[%clk 0:00:05]}  Ne6 {[%clk 0:00:04]} 70. Kd5 {[%clk 0:00:03]}  e3 {[%clk 0:00:05]} 71. Ne2 {[%clk 0:00:04]}  f4 {[%clk 0:00:05]} 72. Ke4 {[%clk 0:00:04]}  Nc5+ {[%clk 0:00:04]} 73. Kxf4 {[%clk 0:00:04]}  Nxd7 {[%clk 0:00:05]} 74. Kxe3 {[%clk 0:00:05]}  Nc5 {[%clk 0:00:05]} 75. Nc3 {[%clk 0:00:05]}  Ke5 {[%clk 0:00:05]} 76. Kf3 {[%clk 0:00:03]}  Kd4 {[%clk 0:00:06]} 77. Ne2+ {[%clk 0:00:04]}  Ke5 {[%clk 0:00:05]} 78. Nc3 {[%clk 0:00:05]}  Kd4 {[%clk 0:00:05]} 79. Ne2+ {[%clk 0:00:05]}  Kd5 {[%clk 0:00:05]} 80. Nc3+ {[%clk 0:00:05]}  Kc4 {[%clk 0:00:05]} 81. Ne2 {[%clk 0:00:04]}  Nxa4 {[%clk 0:00:06]} 82. Nf4 {[%clk 0:00:04]}  Nc5 {[%clk 0:00:07]} 83. Ne6 {[%clk 0:00:05]}  Nxe6 {[%clk 0:00:07]} 0-1


[Site "https://www.chess.com"]